Workbook

Sheet Final Decision Forecast_Opex
C2: 2018-03-01 | D2: 2019-06-01 | E2: 2020-06-01 | F2: 2021-06-01 | G2: 2022-06-01 | H2: 2023-06-01 | I2: 2024-06-01 | J2: 2025-06-01
B4: Real labour escalation (BIS/DAE) | F4: 0.008085708976 | G4: 0.009825264614 | H4: 0.01049345619 | I4: 0.01026224748 | J4: 0.009668180339
B5: Productivity Factor | F5: 0.005 | G5: 0.005 | H5: 0.005 | I5: 0.005 | J5: 0.005
B6: Annual increase in total lights | F6: 5000 | G6: 5000 | H6: 5000 | I6: 5000 | J6: 5000
B9: LED conversion | F9: 0.125 | G9: 0.15 | H9: 0.175 | I9: 0.2 | J9: 0.225
B12: Major LED | F12: 5884 | G12: 11021 | H12: 19785 | I12: 29818 | J12: 41165
B13: Minor LED | F13: 13889 | G13: 26111 | H13: 47098 | I13: 71286 | J13: 98962
B14: Major Conventional | F14: 88706 | G14: 85084 | H14: 77895 | I14: 69502 | J14: 59860
B15: Minor Conventional | F15: 227988 | G15: 219681 | H15: 202683 | I15: 182561 | J15: 159025
B16: TOTAL | C16: 362730 | F16: =SUM(F12:F15) -> 336467 | G16: =SUM(G12:G15) -> 341897 | H16: 347461 | I16: 353167 | J16: 359012
B17: LED portion of total | F17: =SUM(F12:F13)/F16 -> 0.0587665358 | G17: =SUM(G12:G13)/G16 -> 0.1086058082 | H17: 0.192490668 | I17: 0.286278163 | J17: 0.3903128586
B18: MV portion of total | F18: =SUM(F14:F15)/F16 -> 0.9412334642 | G18: =SUM(G14:G15)/G16 -> 0.8913941918 | H18: 0.807509332 | I18: 0.713721837 | J18: 0.6096871414
B20: ACTUAL 2018/19 Operating Costs (RIN basis) | D20: =15984892+'Forecast_Opex Exp (Rev Prop)'!D79*(1/(1+C58)) -> 18569284.22
B21: Actual 2018/19 Operating Costs (Direct costs - operating accounts) | D21: 12011644.36
B22: All - Luminaire Maintenance Activity
B23: Major Road Luminaires Maintenance - Labour | D23: =1422513.79048334 -> 1422513.79 | E23: =D23*(1+E$4)*(1-E$5) -> 1422513.79 | F23: =E23*(1+F$4)*(1-F$5) -> 1426845.744 | G23: 1433660.556 | H23: 1441461.088 | I23: 1448972.449 | J23: 1455666.47
B24: Major Road Luminaires Maintenance - Materials | D24: 766596.1789 | E24: =D24 -> 766596.1789 | F24: =E24 -> 766596.1789 | G24: 766596.1789 | H24: 766596.1789 | I24: 766596.1789 | J24: 766596.1789
B25: Total Maintenance - Major | D25: =SUM(D23:D24) -> 2189109.969 | E25: =SUM(E23:E24) -> 2189109.969 | F25: =SUM(F23:F24) -> 2193441.923 | G25: 2200256.735 | H25: 2208057.267 | I25: 2215568.628 | J25: 2222262.648
B26: Major Luminaires - maintenance volume | D26: 18020 | E26: =D26 -> 18020 | F26: =D26/F$16*F$16 -> 18020 | G26: =F26/F$16*G$16 -> 18310.81188 | H26: 18608.80033 | I26: 18914.3938 | J26: 19227.43164
B28: Minor Road Luminaires Maintenance - Labour | D28: 3241564.75 | E28: =D28*(1+E$4)*(1-E$5) -> 3241564.75 | F28: =E28*(1+F$4)*(1-F$5) -> 3251436.223 | G28: 3266965.532 | H28: 3284741.055 | I28: 3301857.632 | J28: 3317111.684
B29: Materials | D29: 1315254.651 | E29: =D29 -> 1315254.651 | F29: =E29 -> 1315254.651 | G29: 1315254.651 | H29: 1315254.651 | I29: 1315254.651 | J29: 1315254.651
B30: Total Maintenance - Minor | D30: =D28+D29 -> 4556819.401 | E30: =SUM(E28:E29) -> 4556819.401 | F30: =SUM(F28:F29) -> 4566690.874 | G30: 4582220.183 | H30: 4599995.707 | I30: 4617112.283 | J30: 4632366.335
B31: Minor Luminaires - maintenance volume | D31: 50391 | E31: =D31 -> 50391 | F31: =D31/F$16*F$16 -> 50391 | G31: =F31/F$16*G$16 -> 51204.22427 | H31: 52037.51706 | I31: 52892.07648 | J31: 53767.45325
B33: Portion of difference between RIN and operating accounts attributed to Luminaires (all labour) | D33: =(D20-D21)*SUM(D25,D30)/D21 -> 3682874.215 | E33: =D33*(1+E$4)*(1-E$5) -> 3682874.215 | F33: =E33*(1+F$4)*(1-F$5) -> 3694089.6 | G33: 3711733.083 | H33: 3731928.582 | I33: 3751375.423 | J33: 3768706.176
B34: Non-network capex (excluded from SCS) | D34: =469638 -> 469638 | E34: =D34 -> 469638 | F34: =E34 -> 469638 | G34: 469638 | H34: 469638 | I34: 469638 | J34: 469638
B36: Total Luminaire Maintenance - ALL | D36: =SUM(D25,D30,D33:D34) -> 10898441.59 | E36: =SUM(E25,E30,E33:E34) -> 10898441.59 | F36: 10923860.4 | G36: 10963848 | H36: 11009619.55 | I36: 11053694.33 | J36: 11092973.16
B37: Unadjusted Luminaire Maintenance Volume | D37: =D31+D26 -> 68411 | E37: =D37 -> 68411 | F37: 68411 | G37: 69515.03615 | H37: 70646.31738 | I37: 71806.47028 | J37: 72994.88488
B38: Maintenance Unit Rate - All | D38: =D36/(D26+D31) -> 159.3083215 | E38: 159.3083215 | F38: 159.6798819 | G38: 157.7190865 | H38: 155.8413795 | I38: 153.9373025 | J38: 151.9691849
B40: Reduction in Maintenance Cost of Conventional/MV Luminaires
B41: Portion of conventional/MV luminaires requiring maintenance | F41: =F37/(F14+F15) -> 0.2160160912
B42: Adjusted Conventional/MV Luminair Maintenance Volume | F42: =ROUND($F$41*SUM(F14:F15),0) -> 68411 | G42: =ROUND($F$41*SUM(G14:G15),0) -> 65834 | H42: =ROUND($F$41*SUM(H14:H15),0) -> 60609 | I42: 54450 | J42: 47283
B43: Reduction in maintenance volume due to LEDs | F43: =F37-F42 -> 0 | G43: 3681.036146 | H43: 10037.31738 | I43: 17356.47028 | J43: 25711.88488
B44: Reduction in Conventional/MV Luminiaire Maintenance | F44: =F38*F43 -> 0 | G44: =G38*G43 -> 580569.6585 | H44: 1564229.387 | I44: 2671808.216 | J44: 3907414.188
B46: Increase in Maintenance Cost of LEDs Luminaires
B47: Portion of LED luminaires requiring maintenance | F47: 0.01 | G47: 0.02 | H47: 0.03 | I47: 0.04 | J47: 0.05
B48: LED Luminair Maintenance Volume | F48: =ROUND(SUM(F12:F13)*F47,0) -> 198 | G48: =ROUND(SUM(G12:G13)*G47,0) -> 743 | H48: 2006 | I48: 4044 | J48: 7006
B49: Addition of LED Luminaire Maintenance | F49: =F48*F38 -> 31616.61661 | G49: 117185.2813 | H49: 312617.8072 | I49: 622522.4511 | J49: 1064696.11
B51: Total Pole Maintenance | D51: =D20-D36 -> 7670842.63 | E51: =SUM(E52:E53) -> 7670842.63 | F51: =SUM(F52:F53) -> 7690698.517 | G51: 7721934.806 | H51: 7757689.222 | I51: 7792118.205 | J51: 7822800.831
B52: Labour portion | D52: =D51-D53 -> 6520216.235 | E52: =D52*(1+E$4)*(1-E$5) -> 6520216.235 | F52: =E52*(1+F$4)*(1-F$5) -> 6540072.122 | G52: 6571308.411 | H52: 6607062.827 | I52: 6641491.811 | J52: 6672174.436
B53: Material Portion | C53: 0.15 | D53: =D51*$C53 -> 1150626.394 | E53: =D53 -> 1150626.394 | F53: =E53 -> 1150626.394 | G53: 1150626.394 | H53: 1150626.394 | I53: 1150626.394 | J53: 1150626.394
B55: Opex Conventional/MV
B56: Pole maintenance | D56: =D20-D62-D57 -> 7670842.63 | F56: =F51*SUM(F14:F15)/F16 -> 7238742.807 | G56: =G51*SUM(G14:G15)/G16 -> 6883287.835 | H56: 6264406.441 | I56: 5561404.919 | J56: 4769461.076
B57: Luminaire maintenance | D57: =D36-D44 -> 10898441.59 | E57: =E36-E44 -> 10898441.59 | F57: =F36-F44 -> 10923860.4 | G57: =G36-G44 -> 10383278.34 | H57: 9445390.168 | I57: 8381886.119 | J57: 7185558.97
B58: Overhead | C58: 0.319 | D58: =SUM(D56:D57)*$C58 -> 5923601.665 | E58: 3476602.866 | F58: 5793870.422 | G58: 5508034.611 | H58: 5011425.118 | I58: 4447909.841 | J58: 3813651.395
B59: TOTAL | D59: =SUM(D56:D58) -> 24492885.88 | E59: =SUM(E56:E58) -> 14375044.45 | F59: 23956473.63 | G59: 22774600.79 | H59: 20721221.73 | I59: 18391200.88 | J59: 15768671.44
B61: Opex LED
B62: Pole maintenance | F62: =F51*F17 -> 451955.7097 | G62: 838646.9703 | H62: 1493282.781 | I62: 2230713.286 | J62: 3053339.755
B63: Luminaire maintenance | F63: =F49 -> 31616.61661 | G63: 117185.2813 | H63: 312617.8072 | I63: 622522.4511 | J63: 1064696.11
B64: Overhead | C64: =C58 -> 0.319 | F64: =SUM(F62:F63)*$C64 -> 154259.5721 | G64: 304910.4883 | H64: 576082.2875 | I64: 910182.2001 | J64: 1313653.441
B65: Total Operating Cost | F65: =SUM(F62:F64) -> 637831.8984 | G65: 1260742.74 | H65: 2381982.875 | I65: 3763417.937 | J65: 5431689.305
B67: Opex per Conventional/MV installation | F67: =F59/SUM(F14:F15) -> 75.64549258 | G67: 74.72839988 | H67: 73.85191186 | I67: 72.96271519 | J67: 72.04089564
B68: Opex per LED installation | F68: =F65/SUM(F12:F13) -> 32.25772004 | G68: 33.95299849 | H68: 35.61417513 | I68: 37.22323486 | J68: 38.76261752
B70: Total PL Opex | F70: =SUM(F59,F65) -> 24594305.53 | G70: 24035343.53 | H70: 23103204.6 | I70: 22154618.82 | J70: 21200360.75
B72: Percentage decline 2020- 2025 | C72: =(F70-J70)/F70 -> 0.1379971789
B75: Key
B76: Blue = Assumptions and sourced data
B77: Black = calculated data
B78: RIN DATA : 2018-19 Actual O & M | D78: 24492885.88
B79: Difference | D79: =D78-D59 -> 0
B81: PTRM Input Data ($M)
B82: PL Opex (Real 2018/19 mid year)
B83: =B55 -> Opex Conventional/MV | F83: =F59/10^6 -> 23.95647363 | G83: =G59/10^6 -> 22.77460079 | H83: 20.72122173 | I83: 18.39120088 | J83: 15.76867144
B84: =B61 -> Opex LED | F84: =F65/10^6 -> 0.6378318984 | G84: =G65/10^6 -> 1.26074274 | H84: 2.381982875 | I84: 3.763417937 | J84: 5.431689305
B85: Total PL Opex | F85: =SUM(F83:F84) -> 24.59430553 | G85: =SUM(G83:G84) -> 24.03534353 | H85: 23.1032046 | I85: 22.15461882 | J85: 21.20036075
B88: Total PL Opex Converted to Real 2019/20 end of year
B89: CPI 2018-19 6months | E89: =(1+E103)^0.5-1 -> 0.00888116902
B90: CPI 2019-20 12 months | E90: =E104 -> 0.01840490798
B91: CPI June 2019 to Dec 2020 | E91: =(1+E89)*(1+E90)-1 -> 0.02744953409
B93: =B83 -> Opex Conventional/MV | F93: =F83*(1+$E$91) -> 24.61406767 | G93: =G83*(1+$E$91) -> 23.39975297 | H93: 21.29000961 | I93: 18.89603077 | J93: 16.20151413
B94: =B84 -> Opex LED | F94: =F84*(1+$E$91) -> 0.6553400868 | G94: 1.295349541 | H94: 2.447367195 | I94: 3.866722006 | J94: 5.580786646
B95: Total PL Opex | F95: =SUM(F93:F94) -> 25.26940775 | G95: =SUM(G93:G94) -> 24.69510251 | H95: 23.7373768 | I95: 22.76275278 | J95: 21.78230077
B97: Difference from Revised Poroposal
B98: =B93 -> Opex Conventional/MV | F98: =F93-'Forecast_Opex Exp (Rev Prop)'!F93 -> 3.491179433 | G98: =G93-'Forecast_Opex Exp (Rev Prop)'!G93 -> 3.339380637 | H98: =H93-'Forecast_Opex Exp (Rev Prop)'!H93 -> 3.059817264 | I98: =I93-'Forecast_Opex Exp (Rev Prop)'!I93 -> 2.72860256 | J98: =J93-'Forecast_Opex Exp (Rev Prop)'!J93 -> 2.369631266
B99: =B94 -> Opex LED | F99: =F94-'Forecast_Opex Exp (Rev Prop)'!F94 -> 0.09804602828 | G99: =G94-'Forecast_Opex Exp (Rev Prop)'!G94 -> 0.1938273876 | H99: =H94-'Forecast_Opex Exp (Rev Prop)'!H94 -> 0.3668424421 | I99: =I94-'Forecast_Opex Exp (Rev Prop)'!I94 -> 0.5795825888 | J99: =J94-'Forecast_Opex Exp (Rev Prop)'!J94 -> 0.8438268241
B100: Total PL Opex | F100: =F95-'Forecast_Opex Exp (Rev Prop)'!F95 -> 3.589225461 | G100: =G95-'Forecast_Opex Exp (Rev Prop)'!G95 -> 3.533208024 | H100: =H95-'Forecast_Opex Exp (Rev Prop)'!H95 -> 3.426659706 | I100: =I95-'Forecast_Opex Exp (Rev Prop)'!I95 -> 3.308185149 | J100: =J95-'Forecast_Opex Exp (Rev Prop)'!J95 -> 3.21345809
B103: CPI 2018-19 | E103: 0.0178412132
B104: CPI 2019-20 | E104: 0.01840490798

Sheet Forecast_Opex Exp (Rev Prop)
C2: 2018-03-01 | D2: 2019-06-01 | E2: 2020-06-01 | F2: 2021-06-01 | G2: 2022-06-01 | H2: 2023-06-01 | I2: 2024-06-01 | J2: 2025-06-01
B4: Real labour escalation (BIS/DAE) | F4: 0.006849122231 | G4: 0.008642561197 | H4: 0.0091219124 | I4: 0.009385148499 | J4: 0.006992028843
B5: Productivity Factor | F5: 0.005 | G5: 0.005 | H5: 0.005 | I5: 0.005 | J5: 0.005
B6: Annual increase in total lights | F6: 5000 | G6: 5000 | H6: 5000 | I6: 5000 | J6: 5000
B9: LED conversion | F9: 0.125 | G9: 0.15 | H9: 0.175 | I9: 0.2 | J9: 0.225
B12: Major LED | F12: 5884 | G12: 11021 | H12: 19785 | I12: 29818 | J12: 41165
B13: Minor LED | F13: 13889 | G13: 26111 | H13: 47098 | I13: 71286 | J13: 98962
B14: Major Conventional | F14: 88706 | G14: 85084 | H14: 77895 | I14: 69502 | J14: 59860
B15: Minor Conventional | F15: 227988 | G15: 219681 | H15: 202683 | I15: 182561 | J15: 159025
B16: TOTAL | C16: 362730 | F16: =SUM(F12:F15) -> 336467 | G16: =SUM(G12:G15) -> 341897 | H16: 347461 | I16: 353167 | J16: 359012
B17: LED portion of total | F17: =SUM(F12:F13)/F16 -> 0.0587665358 | G17: =SUM(G12:G13)/G16 -> 0.1086058082 | H17: 0.192490668 | I17: 0.286278163 | J17: 0.3903128586
B18: MV portion of total | F18: =SUM(F14:F15)/F16 -> 0.9412334642 | G18: =SUM(G14:G15)/G16 -> 0.8913941918 | H18: 0.807509332 | I18: 0.713721837 | J18: 0.6096871414
B20: ACTUAL 2018/19 Operating Costs (RIN basis) | D20: 15984892
B21: Actual 2018/19 Operating Costs (Direct costs - operating accounts) | D21: 12011644.36
B22: All - Luminaire Maintenance Activity
B23: Major Road Luminaires Maintenance - Labour | D23: =1422513.79048334 -> 1422513.79 | E23: =D23*(1+E$4)*(1-E$5) -> 1422513.79 | F23: =E23*(1+F$4)*(1-F$5) -> 1425095.478 | G23: 1430224.893 | H23: 1436054.922 | I23: 1442284.849 | J23: 1445107.499
B24: Major Road Luminaires Maintenance - Materials | D24: 766596.1789 | E24: =D24 -> 766596.1789 | F24: =E24 -> 766596.1789 | G24: 766596.1789 | H24: 766596.1789 | I24: 766596.1789 | J24: 766596.1789
B25: Total Maintenance - Major | D25: =SUM(D23:D24) -> 2189109.969 | E25: =SUM(E23:E24) -> 2189109.969 | F25: =SUM(F23:F24) -> 2191691.656 | G25: 2196821.072 | H25: 2202651.101 | I25: 2208881.027 | J25: 2211703.678
B26: Major Luminaires - maintenance volume | D26: 18020 | E26: =D26 -> 18020 | F26: =D26/F$16*F$16 -> 18020 | G26: =F26/F$16*G$16 -> 18310.81188 | H26: 18608.80033 | I26: 18914.3938 | J26: 19227.43164
B28: Minor Road Luminaires Maintenance - Labour | D28: 3241564.75 | E28: =D28*(1+E$4)*(1-E$5) -> 3241564.75 | F28: =E28*(1+F$4)*(1-F$5) -> 3247447.79 | G28: 3259136.486 | H28: 3272421.713 | I28: 3286618.207 | J28: 3293050.345
B29: Materials | D29: 1315254.651 | E29: =D29 -> 1315254.651 | F29: =E29 -> 1315254.651 | G29: 1315254.651 | H29: 1315254.651 | I29: 1315254.651 | J29: 1315254.651
B30: Total Maintenance - Minor | D30: =D28+D29 -> 4556819.401 | E30: =SUM(E28:E29) -> 4556819.401 | F30: =SUM(F28:F29) -> 4562702.441 | G30: 4574391.137 | H30: 4587676.364 | I30: 4601872.858 | J30: 4608304.996
B31: Minor Luminaires - maintenance volume | D31: 50391 | E31: =D31 -> 50391 | F31: =D31/F$16*F$16 -> 50391 | G31: =F31/F$16*G$16 -> 51204.22427 | H31: 52037.51706 | I31: 52892.07648 | J31: 53767.45325
B33: Portion of difference between RIN and operating accounts attributed to Luminaires (all labour) | D33: =(D20-D21)*SUM(D25,D30)/D21 -> 2231438.689 | E33: =D33*(1+E$4)*(1-E$5) -> 2231438.689 | F33: =E33*(1+F$4)*(1-F$5) -> 2235488.475 | G33: 2243534.777 | H33: 2252680.104 | I33: 2262452.732 | J33: 2266880.508
B34: Non-network capex (excluded from SCS) | D34: =469638 -> 469638 | E34: =D34 -> 469638 | F34: =E34 -> 469638 | G34: 469638 | H34: 469638 | I34: 469638 | J34: 469638
B36: Total Luminaire Maintenance - ALL | D36: =SUM(D25,D30,D33:D34) -> 9447006.059 | E36: =SUM(E25,E30,E33:E34) -> 9447006.059 | F36: 9459520.572 | G36: 9484384.985 | H36: 9512645.57 | I36: 9542844.618 | J36: 9556527.182
B37: Unadjusted Luminaire Maintenance Volume | D37: =D31+D26 -> 68411 | E37: =D37 -> 68411 | F37: =F31+F26 -> 68411 | G37: =G31+G26 -> 69515.03615 | H37: =H31+H26 -> 70646.31738 | I37: =I31+I26 -> 71806.47028 | J37: =J31+J26 -> 72994.88488
B38: Maintenance Unit Rate - All | D38: =D36/(D26+D31) -> 138.0919159 | E38: 138.0919159 | F38: 138.2748472 | G38: 136.4364533 | H38: 134.6516835 | I38: 132.8967234 | J38: 130.9205049
B40: Reduction in Maintenance Cost of Conventional/MV Luminaires
B41: Portion of conventional/MV luminaires requiring maintenance | F41: =F37/(F14+F15) -> 0.2160160912
B42: Adjusted Conventional/MV Luminair Maintenance Volume | F42: =ROUND($F$41*SUM(F14:F15),0) -> 68411 | G42: =ROUND($F$41*SUM(G14:G15),0) -> 65834 | H42: =ROUND($F$41*SUM(H14:H15),0) -> 60609 | I42: 54450 | J42: 47283
B43: Reduction in maintenance volume due to LEDs | F43: =F37-F42 -> 0 | G43: 3681.036146 | H43: 10037.31738 | I43: 17356.47028 | J43: 25711.88488
B44: Reduction in Conventional/MV Luminiaire Maintenance | F44: =F38*F43 -> 0 | G44: =G38*G43 -> 502227.5164 | H44: 1351541.684 | I44: 2306618.03 | J44: 3366212.95
B46: Increase in Maintenance Cost of LEDs Luminaires
B47: Portion of LED luminaires requiring maintenance | F47: 0.01 | G47: 0.02 | H47: 0.03 | I47: 0.04 | J47: 0.05
B48: LED Luminair Maintenance Volume | F48: =ROUND(SUM(F12:F13)*F47,0) -> 198 | G48: =ROUND(SUM(G12:G13)*G47,0) -> 743 | H48: 2006 | I48: 4044 | J48: 7006
B49: Addition of LED Luminaire Maintenance | F49: =F48*F38 -> 27378.41975 | G49: 101372.2848 | H49: 270111.2771 | I49: 537434.3494 | J49: 917229.0571
B51: Total Pole Maintenance | D51: =D20-D36 -> 6537885.941 | E51: =SUM(E52:E53) -> 6537885.941 | F51: =SUM(F52:F53) -> 6547971.578 | G51: 6568010.19 | H51: 6590785.828 | I51: 6615123.704 | J51: 6626150.692
B52: Labour portion | D52: =D51-D53 -> 5557203.049 | E52: =D52*(1+E$4)*(1-E$5) -> 5557203.049 | F52: =E52*(1+F$4)*(1-F$5) -> 5567288.687 | G52: 5587327.299 | H52: 5610102.937 | I52: 5634440.813 | J52: 5645467.801
B53: Material Portion | C53: 0.15 | D53: =D51*$C53 -> 980682.8911 | E53: =D53 -> 980682.8911 | F53: =E53 -> 980682.8911 | G53: 980682.8911 | H53: 980682.8911 | I53: 980682.8911 | J53: 980682.8911
B55: Opex Conventional/MV
B56: Pole maintenance | D56: =D20-D62-D57 -> 6537885.941 | F56: =F51*SUM(F14:F15)/F16 -> 6163169.972 | G56: =G51*SUM(G14:G15)/G16 -> 5854686.135 | H56: 5322121.061 | I56: 4721358.242 | J56: 4039878.874
B57: Luminaire maintenance | D57: =D36-D44 -> 9447006.059 | E57: =E36-E44 -> 9447006.059 | F57: =F36-F44 -> 9459520.572 | G57: =G36-G44 -> 8982157.469 | H57: 8161103.886 | I57: 7236226.588 | J57: 6190314.232
B58: Overhead | C58: 0.319 | D58: =SUM(D56:D57)*$C58 -> 5099180.548 | E58: 3013594.933 | F58: 4983638.284 | G58: 4732953.11 | H58: 4301148.758 | I58: 3814469.561 | J58: 3263431.601
B59: TOTAL | D59: =SUM(D56:D58) -> 21084072.55 | E59: =SUM(E56:E58) -> 12460600.99 | F59: 20606328.83 | G59: 19569796.71 | H59: 17784373.71 | I59: 15772054.39 | J59: 13493624.71
B61: Opex LED
B62: Pole maintenance | F62: =F51*F17 -> 384801.6062 | G62: 713324.0548 | H62: 1268664.767 | I62: 1893765.462 | J62: 2586271.818
B63: Luminaire maintenance | F63: =F49 -> 27378.41975 | G63: 101372.2848 | H63: 270111.2771 | I63: 537434.3494 | J63: 917229.0571
B64: Overhead | C64: =C58 -> 0.319 | F64: =SUM(F62:F63)*$C64 -> 131485.4283 | G64: =SUM(G62:G63)*$C64 -> 259888.1324 | H64: =SUM(H62:H63)*$C64 -> 490869.558 | I64: =SUM(I62:I63)*$C64 -> 775552.7399 | J64: =SUM(J62:J63)*$C64 -> 1117616.779
B65: Total Operating Cost | F65: =SUM(F62:F64) -> 543665.4542 | G65: =SUM(G62:G64) -> 1074584.472 | H65: =SUM(H62:H64) -> 2029645.602 | I65: =SUM(I62:I64) -> 3206752.551 | J65: =SUM(J62:J64) -> 4621117.655
B67: Opex per Conventional/MV installation | F67: =F59/SUM(F14:F15) -> 65.06700104 | G67: 64.21274331 | H67: 63.38477609 | I67: 62.57187446 | J67: 61.64709645
B68: Opex per LED installation | F68: =F65/SUM(F12:F13) -> 27.49534487 | G68: 28.93957966 | H68: 30.34621058 | I68: 31.7173658 | J68: 32.97806743
B70: Total PL Opex | F70: =SUM(F59,F65) -> 21149994.28 | G70: 20644381.19 | H70: 19814019.31 | I70: 18978806.94 | J70: 18114742.36
B72: Percentage decline 2020- 2025 | C72: =(F70-J70)/F70 -> 0.143510768
B75: Key
B76: Blue = Assumptions and sourced data
B77: Black = calculated data
B78: RIN DATA : 2018-19 Actual O & M | D78: 24492885.88
B79: Difference | D79: =D78-D59 -> 3408813.332
B81: PTRM Input Data ($M)
B82: PL Opex (Real 2018/19 mid year)
B83: =B55 -> Opex Conventional/MV | F83: =F59/10^6 -> 20.60632883 | G83: =G59/10^6 -> 19.56979671 | H83: 17.78437371 | I83: 15.77205439 | J83: 13.49362471
B84: =B61 -> Opex LED | F84: =F65/10^6 -> 0.5436654542 | G84: =G65/10^6 -> 1.074584472 | H84: 2.029645602 | I84: 3.206752551 | J84: 4.621117655
B85: Total PL Opex | F85: =SUM(F83:F84) -> 21.14999428 | G85: =SUM(G83:G84) -> 20.64438119 | H85: 19.81401931 | I85: 18.97880694 | J85: 18.11474236
B88: Total PL Opex Converted to Real 2019/20 end of year
B89: CPI June 2019 6months | E89: =((1.59292035398231%+1)^0.5)-1 -> 0.007933134459
B90: CPI June 2020 12 months | E90: 0.017
B91: CPI June 2019 to Dec2020 | E91: =(1+E89)*(1+E90)-1 -> 0.02506799774
B93: =B83 -> Opex Conventional/MV | F93: =F83*(1+$E$91) -> 21.12288823 | G93: =G83*(1+$E$91) -> 20.06037233 | H93: 18.23019235 | I93: 16.16742821 | J93: 13.83188286
B94: =B84 -> Opex LED | F94: =F84*(1+$E$91) -> 0.5572940586 | G94: 1.101522153 | H94: 2.080524753 | I94: 3.287139417 | J94: 4.736959822
B95: Total PL Opex | F95: =SUM(F93:F94) -> 21.68018229 | G95: =SUM(G93:G94) -> 21.16189449 | H95: 20.3107171 | I95: 19.45456763 | J95: 18.56884268
